fUSD/lending_fUSD_20240821
["ID","MTS","AMOUNT","RATE_DAILY","PERIOD"]
[335476465,1724257832179,-250.0,0.00010653,2]
[335476466,1724257832197,-3729.2399425,0.00010653,2]
[335476467,1724257832206,-1884.27,0.000107,2]
[335476468,1724257832217,-14739.94,0.00010734,2]
[335476469,1724257832226,-381.92,0.00010756,2]
[335476470,1724257832401,-969.4174098,0.000108,2]
[335476471,1724257832411,-299.99,0.000108,2]
[335476472,1724257832421,-2701.73,0.000108,2]
[335476473,1724257832431,-981.3,0.000109,2]
[335476474,1724257832441,-309.706854,0.000109,2]
[335476475,1724257832450,-1849.5163937,0.000109,2]
[335476476,1724257832464,-1071.26906078,0.000109,2]
[335476477,1724257832474,-157.65936862,0.000109,2]
[335476478,1724257832484,-179.39,0.00010927,2]
[335476479,1724257832494,-2920.78545448,0.00010938,2]
[335476480,1724257832503,-153.06,0.00010959,2]
[335476481,1724257832512,-159.22,0.00010959,2]
[335476482,1724257832521,-160.39,0.00010959,2]
[335476483,1724257832530,-441.28,0.00010959,2]
[335476484,1724257832539,-184.62182622,0.00010975,2]
[335476485,1724257832549,-2920.78545448,0.00010975,2]
[335476486,1724257832558,-4546.449,0.00010979,2]
[335476487,1724257832568,-164.95884238,0.00010997,2]
[335476488,1724257832577,-164.95884238,0.00010997,2]
[335476489,1724257832587,-7414.71649536,0.00010999,2]
[335476490,1724257832596,-193.15996277,0.00010999,2]
[335476491,1724257832606,-165.01321693,0.00010999,2]
[335476492,1724257832615,-493.92566832,0.00010999,2]
[335476493,1724257832624,-500.0,0.00010999,2]
[335476494,1724257832634,-558.07374932,0.00010999,2]
[335476495,1724257832644,-551657.64454916,0.00011,2]
[335476496,1724257832655,-148812.1225,0.00011,2]
[335476497,1724257832666,-704.92261432,0.00011,2]
[335476498,1724257832677,-2332.32978955,0.00011,2]
[335476499,1724257832688,-713.07366266,0.00011,2]
[335476500,1724257832699,-893.59727248,0.00011,2]
[335476501,1724257832710,-919.70999,0.00011,2]
[335476502,1724257832721,-3460.2277089,0.00011,2]
[335476503,1724257832732,-404.4999995,0.00011,2]
[335476504,1724257832743,-3132.3393828,0.00011,2]
[335476508,1724257837898,-646.72477257,0.000109,2]
[335476509,1724257837908,-91215.86613176,0.00011,2]
[335476510,1724257838099,-618.74932003,0.00011,2]
[335476511,1724257838110,-5654.96312475,0.00011,2]
[335476512,1724257838121,-1989.47898931,0.00011,2]
[335476513,1724257838159,-253.7732008,0.00011,2]
[335476514,1724257838170,-325.88,0.00011,2]
[335476515,1724257838181,-16182.84950419,0.00011,2]
[335476516,1724257838203,-1299.07338171,0.00011,2]
[335476520,1724257838228,-1427.25349251,0.00011,2]
[335476522,1724257838238,-8208.53520196,0.00011,2]
[335476524,1724257838249,-1038.34,0.00011,2]
[335476527,1724257838270,-81083.38660868,0.00011,2]
[335476529,1724257838281,-2118.48446416,0.00011,2]
[335476733,1724257840293,-722.19529931,0.00011,2]
[335476735,1724257840305,-596.8,0.00011,2]
[335476759,1724257840522,-536.95635701,0.00011,2]
[335477144,1724257844765,-2654.71620722,0.00011,2]
[335477203,1724257846029,-343.53915486,0.00011,2]
[335477204,1724257846041,-685.19969759,0.00011,2]
[335477205,1724257846052,-1264.7968584,0.00011,2]
[335477206,1724257846091,-522.01898272,0.00011,2]
[335477207,1724257846103,-355840.92329434,0.00011,2]
[335477208,1724257846112,-344168.55142748,0.00011,2]
[335477209,1724257846124,-2986.504589,0.00011,2]
[335477210,1724257846135,-300.0,0.00011,2]
[335477211,1724257846159,-637.525,0.00011,2]
[335477212,1724257846210,-24236.90631123,0.00011,2]
[335477213,1724257846222,-16744.559,0.00011,2]
[335477214,1724257846233,-3490.9987,0.00011,2]
[335477215,1724257846244,-2366.29051615,0.00011,2]
[335477221,1724258215983,-199.40325006,0.000107,2]
[335477222,1724258216005,-996.0,0.00010799,2]
[335477223,1724258216027,-685.19969757,0.000108,2]
[335477224,1724258216049,-199.40325005,0.00010859,2]
[335477225,1724258216070,-26951.54070232,0.00010899,2]
[335477226,1724258219853,-20000.0,0.00010899,2]
[335477227,1724258251678,-1736.23822515,0.0001089,2]
[335477228,1724258251701,-18263.76177485,0.00010899,2]
[335477229,1724258259834,-378.0,0.000104,5]
[335477230,1724258259856,-17099.06873002,0.00010899,2]
[335477231,1724258259879,-403.35359507,0.00010899,2]
[335477232,1724258259902,-1983.87507491,0.000109,2]
[335477233,1724258297892,150.0,9.429e-05,2]
[335477234,1724258297913,150.0,9.429e-05,2]
[335477235,1724258297935,117.42,9.429e-05,2]
[335477236,1724258299529,-181.52406341,0.00010852,2]
[335477237,1724258300087,-170.36289186,0.00010852,2]
[335477238,1724258300701,-485.07840464,0.00010852,2]
[335477239,1724258301353,-345.90683857,0.00010852,2]
[335477240,1724258302710,-318.19408384,0.00010852,2]
[335477241,1724258303345,-250.74267249,0.00010852,2]
[335477242,1724258303819,-154.95,0.00010852,2]
[335477243,1724258304423,-214.29963205,0.00010852,2]
[335477244,1724258304980,-181.97999253,0.00010852,2]
[335477245,1724258421581,-190.23546607,0.00010097,2]
[335477246,1724258423489,-170.36289186,0.00010097,2]
[335477247,1724258424860,-181.52406341,0.00010097,2]
[335477248,1724258554788,-417.167595,9.948e-05,2]
[335477250,1724258592791,-693.81147751,9.948e-05,2]
[335477251,1724258596383,-155.0,9.948e-05,2]
[335477254,1724258665911,150.0,7.969e-05,2]
[335477255,1724258665931,47.26,7.969e-05,2]
[335477256,1724258667222,-150.98255908,9.941e-05,2]
[335477257,1724258708923,-150.0,9.941e-05,2]
[335477258,1724258708945,-4.95,9.941e-05,2]
[335477259,1724258710339,-181.97999253,9.941e-05,2]
[335477260,1724258710885,-113.07000747,9.941e-05,2]
[335477261,1724258710905,-64.33323271,9.941e-05,2]
[335477262,1724258711643,-150.0,9.941e-05,2]
[335477263,1724258715404,150.0,9.888e-05,2]
[335477264,1724258726077,-77.42380234,9.941e-05,2]
[335477265,1724258726103,-72.57619766,9.941e-05,2]
[335477266,1724258726679,-150.0,9.941e-05,2]
[335477267,1724258727409,-150.0,9.941e-05,2]
[335477268,1724258727966,-150.0,9.941e-05,2]
[335477269,1724258728589,-150.0,9.941e-05,2]
[335477270,1724258729092,-150.0,9.941e-05,2]
[335477271,1724258729788,-150.0,9.941e-05,2]
[335477272,1724258730384,-150.0,9.941e-05,2]
[335477273,1724258731160,-150.0,9.941e-05,2]
[335477274,1724258732044,-150.0,9.941e-05,2]
[335477275,1724258732577,-150.0,9.941e-05,2]
[335477276,1724258733064,-150.0,9.941e-05,2]
[335477277,1724258734172,-150.0,9.941e-05,2]
[335477278,1724258734643,-150.0,9.941e-05,2]
[335477279,1724258735324,-150.0,9.941e-05,2]
[335477280,1724258735738,-150.0,9.941e-05,2]
[335477281,1724258736461,-150.0,9.941e-05,2]
[335477282,1724258736939,-150.0,9.941e-05,2]
[335477283,1724258737555,-150.0,9.941e-05,2]
[335477284,1724258738206,-150.0,9.941e-05,2]
[335477285,1724258738567,-150.0,9.941e-05,2]
[335477286,1724258739634,-1.00810507,9.941e-05,2]
[335477287,1724258739655,-148.99189493,9.941e-05,2]
[335477288,1724258740427,-65.30773712,9.941e-05,2]
[335477289,1724258740449,-84.69226288,9.941e-05,2]
[335477290,1724258741075,-150.0,9.941e-05,2]
[335477291,1724258741522,-150.0,9.941e-05,2]
[335477292,1724258742242,-150.0,9.941e-05,2]
[335477293,1724258742949,-150.0,9.941e-05,2]
[335477294,1724258743642,-150.0,9.941e-05,2]
[335477295,1724258744140,-150.0,9.941e-05,2]
[335477296,1724258744501,-150.0,9.941e-05,2]
[335477298,1724258745073,-150.0,9.941e-05,2]
[335477299,1724258745524,-150.0,9.941e-05,2]
[335477300,1724258746176,-150.0,9.941e-05,2]
[335477302,1724258747570,-150.0,9.941e-05,2]
[335477303,1724258748138,-150.0,9.941e-05,2]
[335477304,1724258748793,-150.0,9.941e-05,2]
[335477305,1724258753770,-340.59471601,9.941e-05,2]
[335477306,1724258753792,-693.81147751,9.941e-05,2]
[335477307,1724258753815,-32815.59380648,9.942e-05,2]
[335477309,1724258783220,-35779.71553285,9.942e-05,2]
[335477310,1724258822373,150.0,9.941e-05,2]
[335477311,1724258822394,150.0,9.941e-05,2]
[335477312,1724258824008,-158.1829604,9.969e-05,2]
[335477313,1724258825788,-150.0,9.969e-05,2]
[335477314,1724258826483,-21.7570396,9.969e-05,2]
[335477315,1724258826505,-128.2429604,0.00010096,2]
[335477316,1724258826994,-150.0,0.00010096,2]
[335477317,1724258827555,-21.7570396,0.00010096,2]
[335477318,1724258827576,-128.2429604,0.00010096,2]
[335477319,1724258828034,-150.0,0.00010096,2]
[335477320,1724258828472,-21.7570396,0.00010096,2]
[335477321,1724258828493,-128.2429604,0.00010097,2]
[335477322,1724258829112,-150.0,0.00010097,2]
[335477323,1724258829774,-21.9443345,0.00010097,2]
[335477324,1724258829796,-128.0556655,0.00010097,2]
[335477325,1724258830448,-42.30722636,0.00010097,2]
[335477326,1724258830468,-107.69277364,0.00010097,2]
[335477327,1724258831184,-150.0,0.00010097,2]
[335477328,1724258846597,150.0,9.942e-05,2]
[335477329,1724258846619,150.0,9.942e-05,2]
[335477330,1724258846639,150.0,9.942e-05,2]
[335477331,1724258846659,150.0,9.942e-05,2]
[335477332,1724258846682,2473.58430273,9.942e-05,2]
[335477333,1724258851039,18259.84755439,9.942e-05,2]
[335477334,1724258851452,455.44624217,9.942e-05,2]
[335477335,1724258866494,201.18148541,9.942e-05,2]
[335477336,1724258896007,150.0,8.219e-05,2]
[335477337,1724258896034,150.0,8.219e-05,2]
[335477338,1724258896054,150.0,8.219e-05,2]
[335477339,1724258896074,35.13,8.219e-05,2]
[335477341,1724258902556,150.0,9.942e-05,2]
[335477342,1724258902578,107.04102161,9.942e-05,2]
[335477346,1724258956109,-1810.27765918,0.00010026,2]
[335477347,1724258956131,-1813.17,0.00010039,2]
[335477348,1724258956155,-1000.0,0.00010046,2]
[335477349,1724258956330,-150.0,0.00010096,2]
[335477350,1724258956353,-300.0,0.00010096,2]
[335477351,1724258956375,-300.0,0.00010096,2]
[335477352,1724258956397,-227.385631,0.00010097,2]
[335477353,1724258956417,-181.97999253,0.00010097,2]
[335477354,1724258956439,-413.35824992,0.00010097,2]
[335477355,1724258956462,-500.0,0.00010097,2]
[335477356,1724258956483,-500.0,0.00010097,2]
[335477357,1724258956504,-500.0,0.00010097,2]
[335477358,1724258956525,-500.0,0.00010097,2]
[335477359,1724258956545,-500.0,0.00010097,2]
[335477360,1724258956566,-500.0,0.00010097,2]
[335477361,1724258956588,-502.0,0.00010097,2]
[335477362,1724258956607,-151.0,0.00010097,2]
[335477363,1724258956627,-151.0,0.00010097,2]
[335477364,1724258961495,3073.58430273,9.942e-05,2]
[335477365,1724258990330,-708.06,0.00010109,2]
[335477366,1724258990352,-8531.99,0.00010358,2]
[335477367,1724258990373,-348.87,0.0001041,2]
[335477368,1724258990395,-611.46,0.00010473,2]
[335477369,1724258990418,-485.13,0.00010482,2]
[335477370,1724259001423,-703.3501,0.00010699,2]
[335477371,1724259001445,-255.29819999,0.00010799,2]
[335477372,1724259001469,-155.0,0.00010861,2]
[335477373,1724259001491,-206.0070509,0.00010862,2]
[335477374,1724259001512,-300.0,0.0001089,2]
[335477375,1724259001533,-6509.84,0.0001089,2]
[335477376,1724259001555,-651.6,0.0001089,2]
[335477377,1724259001576,-499.99,0.0001089,2]
[335477378,1724259001597,-155.0,0.0001089,2]
[335477379,1724259001621,-2342.45587798,0.00010899,2]
[335477381,1724259008193,-305.67117386,0.000109,2]
[335477382,1724259008215,-202.60015383,0.000109,2]
[335477383,1724259008238,-1231.97004039,0.000109,2]
[335477384,1724259008258,-5118.44454482,0.000109,2]
[335477385,1724259008279,-161.29938064,0.000109,2]
[335477386,1724259008301,-949.54206571,0.00010949,2]
[335477387,1724259008323,-155.35,0.00010959,2]
[335477388,1724259008346,-159.03,0.00010959,2]
[335477389,1724259008370,-2000.0,0.00010959,2]
[335477390,1724259008391,-1500.0,0.00010959,2]
[335477391,1724259008413,-250.0,0.00010959,2]
[335477392,1724259008434,-155.0,0.00010979,2]
[335477393,1724259008455,-3898.50993736,0.00010988,2]
[335477404,1724259032243,-206.0070509,0.00010861,2]
[335477405,1724259032254,-315.0054842,0.000109,2]
[335477406,1724259032264,-309.53385729,0.00010979,2]
[335477407,1724259032273,-169.45374111,0.00010979,2]
[335477408,1724259032284,-484.32,0.00010979,2]
[335477409,1724259032295,-238.27078572,0.00010979,2]
[335477410,1724259032304,-264.75193228,0.00010988,2]
[335477411,1724259032328,-30863.47921625,0.00010988,2]
[335477412,1724259032337,-486.12274777,0.00010989,2]
[335477413,1724259032347,-35738.15616579,0.00010989,2]
[335477414,1724259032356,-4837.29017679,0.00010989,2]
[335477415,1724259032366,-35738.15616579,0.00010989,2]
[335477416,1724259032375,-263.90569064,0.00010993,2]
[335477417,1724259032384,-275.1054945,0.00010999,2]
[335477418,1724259032394,-156.07377469,0.00010999,2]
[335477419,1724259032403,-440.25519205,0.00010999,2]
[335477420,1724259032413,-366.51001001,0.00010999,2]
[335477421,1724259032422,-235.95346244,0.00010999,2]
[335477422,1724259032431,-159.58732349,0.00010999,2]
[335477423,1724259032441,-256.68239714,0.00010999,2]
[335477424,1724259032450,-214.94751681,0.00010999,2]
[335477425,1724259032459,-432.64200537,0.00010999,2]
[335477426,1724259032468,-405727.98707726,0.00011,2]
[335477428,1724259032479,-159407.1240147,0.00011,2]
[335477430,1724259032490,-1096.62478645,0.00011,2]
[335477431,1724259032502,-300.0,0.00011,2]
[335477432,1724259032512,-839.21568449,0.00011,2]
[335477433,1724259032524,-399.20391486,0.00011,2]
[335477434,1724259032535,-292.58427411,0.00011,2]
[335477435,1724259032550,-587.636628,0.00011,2]
[335477501,1724259038157,-556.05126034,0.000109,2]
[335477502,1724259038215,-347.11103298,0.000109,2]
[335477503,1724259038226,-1065.04505272,0.000109,2]
[335477504,1724259038235,-166.44772973,0.00010993,2]
[335477505,1724259038244,-330.4044326,0.00010999,2]
[335477506,1724259038257,-368.02160394,0.00010999,2]
[335477507,1724259038266,-925.08118101,0.00011,2]
[335477508,1724259038280,-1258.75000001,0.00011,2]
[335477509,1724259038326,-320.69345031,0.00011,2]
[335477510,1724259038337,-1003.29158001,0.00011,2]
[335477595,1724259039254,-526.13289379,0.00011,2]
[335477597,1724259039267,-614.26953363,0.00011,2]
[335477599,1724259039279,-358.48667185,0.00011,2]
[335477601,1724259039290,-18007.49802,0.00011,2]
[335477604,1724259039305,-678.64593533,0.00011,2]
[335477606,1724259039319,-10120.80222486,0.00011,2]
[335477609,1724259039329,-7768.1384,0.00011,2]
[335477611,1724259039341,-7146.2938,0.00011,2]
[335477613,1724259039352,-17006.65070178,0.00011,2]
[335477750,1724259040818,-1.325e-05,0.00011,2]
[335477752,1724259040830,-92339.98351137,0.00011,2]
[335477756,1724259040853,-530.37784572,0.00011,2]
[335477758,1724259040865,-2986.86174411,0.00011,2]
[335477760,1724259040876,-2347.58158213,0.00011,2]
[335477762,1724259040887,-4432.26839026,0.00011,2]
[335477764,1724259040910,-3024.61252761,0.00011,2]
[335477766,1724259040922,-1494.7972199,0.00011,2]
[335477769,1724259040941,-432268.48378011,0.00011,2]
[335477771,1724259040952,-51811.67434207,0.00011,2]
[335477773,1724259040964,-300.59930483,0.00011,2]
[335477776,1724259040983,-11953.20000001,0.00011,2]
[335477778,1724259040994,-7827.40409999,0.00011,2]
[335477780,1724259041006,-286.4,0.00011,2]
[335478010,1724259043279,-156.0,0.00010988,2]
[335478012,1724259043289,-5262.49124456,0.00011,2]
[335478015,1724259043300,-1072.42759467,0.00011,2]
[335478017,1724259043311,-4330.59626476,0.00011,2]
[335478019,1724259043322,-827.19049739,0.00011,2]
[335478021,1724259043334,-445.19999997,0.00011,2]
[335478028,1724259043395,-715.43335499,0.00011,2]
[335478030,1724259043412,-6204.60000004,0.00011,2]
[335478034,1724259043451,-483.05008366,0.00011,2]
[335478037,1724259043462,-11959.56,0.00011,2]
[335478039,1724259043473,-547.46957672,0.00011,2]
[335478043,1724259043507,-406.27963998,0.00011,2]
[335478046,1724259043519,-1700.6,0.00011,2]
[335478128,1724259044307,-1637.0841609,0.00011,2]
[335478131,1724259044331,-300.1872949,0.00010988,2]
[335478133,1724259044340,-460.0227051,0.00011,2]
[335478135,1724259044352,-427.149998,0.00011,2]
[335478137,1724259044364,-623.25,0.00011,2]
[335478310,1724259046190,-413.35824992,0.00010988,2]
[335478312,1724259046199,-6945.83571108,0.00011,2]
[335478319,1724259046264,-1027.23231092,0.00011,2]
[335478325,1724259046314,-349.99877428,0.00011,2]
[335478327,1724259046325,-1000.0,0.00011,2]
[335478332,1724259046371,-1235.87774031,0.00011,2]
[335478571,1724259351591,453.01,8.439e-05,2]
[335478572,1724259425529,150.0,8.439e-05,2]
[335478573,1724259425549,150.0,8.439e-05,2]
[335478574,1724259425570,150.0,8.439e-05,2]
[335478575,1724259425590,150.0,8.439e-05,2]
[335478576,1724259425610,150.0,8.439e-05,2]
[335478577,1724259425633,150.0,8.439e-05,2]
[335478578,1724259425656,1994.4354771,8.439e-05,2]
[335478579,1724259428694,150.0,8.439e-05,2]
[335478580,1724259428715,50.55367824,8.439e-05,2]
[335478583,1724259435136,150.0,8.439e-05,2]
[335478584,1724259435156,150.0,8.439e-05,2]
[335478585,1724259435177,15947.4072914,8.439e-05,2]
[335478592,1724259823788,150.0,8.219e-05,2]
[335478593,1724259823808,150.0,8.219e-05,2]
[335478594,1724259823828,130.35,8.219e-05,2]
[335478596,1724259912551,19.65,9.888e-05,2]
[335478597,1724259912573,130.35,9.888e-05,2]
[335478641,1724260145649,19.65,9.796e-05,2]
[335478642,1724260145669,150.0,9.796e-05,2]
[335478643,1724260145690,150.0,9.796e-05,2]
[335478644,1724260145710,109.61,9.796e-05,2]
[335478647,1724260162312,68.70711787,9.86e-05,2]
[335478648,1724260162332,248.18970862,9.86e-05,2]
[335478649,1724260162356,35421.2593393,9.86e-05,2]
[335478661,1724260220732,1391.23,9.907e-05,2]
[335478662,1724260227857,175.15,9.887e-05,2]
[335478664,1724260232396,-339.01014546,9.941e-05,2]
[335478665,1724260232405,-300.0,9.942e-05,2]
[335478666,1724260232414,-155.04386225,9.943e-05,2]
[335478667,1724260232424,-155.09832397,9.943e-05,2]
[335478668,1724260232433,-155.0,9.943e-05,2]
[335478669,1724260232443,-800.0,9.955e-05,2]
[335478670,1724260232452,-464.14263241,9.988e-05,2]
[335478671,1724260232462,-607.75596666,9.988e-05,2]
[335478672,1724260232471,-547.86236267,9.999e-05,2]
[335478673,1724260232480,-165.33015404,0.0001,2]
[335478674,1724260232496,-689.64815006,0.0001,2]
[335478675,1724260232518,-195.0216959,0.0001,2]
[335478676,1724260232528,-150.0,0.00010031,2]
[335478677,1724260232537,-1329.79572545,0.00010032,2]
[335478678,1724260232549,-5090.59023949,0.00010032,2]
[335478691,1724260238579,-5822.32424264,0.00010032,2]
[335478692,1724260238593,-702.14287719,0.00010032,2]
[335478693,1724260238612,-914.0500234,0.00010032,2]
[335478694,1724260238623,-2166.78342138,0.00010032,2]
[335478695,1724260238642,-1255.0,0.00010032,2]
[335478696,1724260238653,-6609.31347045,0.00010032,2]
[335478697,1724260238662,-170.36289186,0.00010229,2]
[335478698,1724260238672,-807.00195069,0.00010229,2]
[335478699,1724260238689,-192.98804931,0.00010229,2]
[335478700,1724260238698,-111.95600663,0.00010229,2]
[335478701,1724260238709,-627.16497706,0.00010229,2]
[335478702,1724260238718,-98.82287459,0.00010412,2]
[335478703,1724260238734,-101.17712541,0.00010412,2]
[335478705,1724260238743,-178.79,0.00010462,2]
[335478707,1724260238752,-78.36772623,0.00010479,2]
[335478710,1724260238771,-351.98227377,0.00010479,2]
[335478712,1724260238779,-2343.73872137,0.00010505,2]
[335478714,1724260238789,-4772.7127,0.00010566,2]
[335478716,1724260238798,-499.99,0.00010697,2]
[335478718,1724260238807,-150.99,0.00010852,2]
[335478719,1724260238816,-5965.029,0.00010861,2]
[335478721,1724260238825,-1059.62967,0.0001089,2]
[335478723,1724260238834,-155.50410143,0.0001089,2]
[335478725,1724260238843,-241.54230122,0.0001089,2]
[335478727,1724260238853,-452.33980789,0.00010899,2]
[335478729,1724260238862,-155.0,0.00010899,2]
[335478731,1724260238871,-173.65727472,0.000109,2]
[335478733,1724260238880,-3707.36504172,0.000109,2]
[335478890,1724260240534,-155.0,0.0001089,2]
[335478892,1724260240544,-1853.64191833,0.000109,2]
[335478894,1724260240553,-317.06206716,0.000109,2]
[335478896,1724260240563,-230.87780389,0.000109,2]
[335478899,1724260240592,-1614.21694269,0.000109,2]
[335478901,1724260240603,-1124.8216078,0.000109,2]
[335478903,1724260240612,-156.7,0.00010959,2]
[335478905,1724260240622,-304.26144951,0.00010959,2]
[335478908,1724260240633,-1195.73855049,0.00010959,2]
[335478910,1724260240642,-159.22,0.00010959,2]
[335478912,1724260240650,-250.0,0.00010959,2]
[335478913,1724260240659,-160.63166625,0.00010973,2]
[335478915,1724260240668,-200.0,0.00010973,2]
[335478917,1724260240677,-200.0,0.00010973,2]
[335478919,1724260240687,-428.52674298,0.00010973,2]
[335478921,1724260240695,-687.78304028,0.00011,2]
[335478923,1724260240706,-2641.025,0.00011,2]
[335478926,1724260240717,-3029.82371564,0.00011,2]
[335478928,1724260240728,-898.01,0.00011,2]
[335478930,1724260240742,-3512.67903515,0.00011,2]
[335478933,1724260240755,-2514.17028183,0.00011,2]
[335478944,1724260240972,-4011.24206336,0.00011,2]
[335478945,1724260240985,-574.62225225,0.00011,2]
[335478948,1724260241001,-5757.679847,0.00011,2]
[335478950,1724260241011,-2805.1,0.00011,2]
[335478952,1724260241029,-3249.95340702,0.00011,2]
[335478954,1724260241041,-400000.0,0.00011,2]
[335478974,1724260243474,-711.82512358,0.00011,2]
[335479071,1724260244691,-161270.1601488,0.00011,2]
[335479073,1724260244700,-143887.98604906,0.00011,2]
[335479075,1724260244711,-937.62359428,0.00011,2]
[335479078,1724260244727,-591.9999999,0.00011,2]
[335479188,1724260246399,-23419.14721599,0.00011,2]
[335479189,1724260246410,-859.59283247,0.00011,2]
[335479190,1724260246514,-1301.37556257,0.00011,2]
[335479191,1724260246526,-1430.54589821,0.00011,2]
[335479192,1724260246582,-2695.8483424,0.00011,2]
[335479193,1724260246594,-390457.38329339,0.00011,2]
[335479194,1724260246605,-335.451,0.00011,2]
[335479195,1724260246617,-2796.45,0.00011,2]
[335479197,1724260286400,395.96,8.219e-05,2]
[335479198,1724260357971,500.0,8.219e-05,2]
[335479199,1724260358306,600.0,8.219e-05,2]
[335479200,1724260358563,979.0,8.219e-05,2]
[335479201,1724260779507,376.16,8.22e-05,2]
[335479202,1724260794824,160.16,9.867e-05,2]
[335479203,1724260924520,640.0,9.885e-05,2]
[335479209,1724261067295,35738.15616579,9.86e-05,2]
[335479309,1724261250342,357.35,8.219e-05,2]
[335479364,1724261431584,-164.97,9.971e-05,2]
[335479365,1724261431593,-300.0,9.999e-05,2]
[335479366,1724261431603,-300.0,9.999e-05,2]
[335479367,1724261431613,-173.55877246,9.999e-05,2]
[335479368,1724261431622,-1050.0,0.0001,2]
[335479369,1724261431632,-1472.36908022,0.0001,2]
[335479370,1724261431641,-920.81569175,0.0001,2]
[335479371,1724261431651,-214.63,0.00010006,2]
[335479372,1724261431660,-745.0343505,0.00010009,2]
[335479373,1724261431669,-155.0346522,0.00010026,2]
[335479374,1724261431680,-192.37410487,0.00010026,2]
[335479375,1724261431689,-5550.0,0.000101,2]
[335479376,1724261431698,-2023.54,0.00010104,2]
[335479377,1724261431708,-298.98,0.00010138,2]
[335479378,1724261431717,-360.0,0.00010231,2]
[335479379,1724261431727,-400.0,0.000103,3]
[335479380,1724261431736,-900.0,0.000104,3]
[335479381,1724261431745,-794.0,0.00010423,2]
[335479382,1724261431755,-357.35,0.0001047,2]
[335479383,1724261431764,-499.99,0.000105,2]
[335479384,1724261431773,-1300.0,0.000105,3]
[335479385,1724261431783,-178.79,0.00010524,2]
[335479386,1724261431792,-155.0,0.00010566,2]
[335479387,1724261431801,-1800.0,0.000106,3]
[335479388,1724261431811,-2200.0,0.000107,3]
[335479389,1724261431820,-400.0,0.000108,3]
[335479390,1724261431830,-4382.5694,0.000109,2]
[335479391,1724261431840,-400.0,0.000109,3]
[335479392,1724261431850,-801.67752908,0.000109,2]
[335479393,1724261431860,-150.0,0.000109,2]
[335479394,1724261431870,-173.65727469,0.000109,2]
[335479395,1724261431879,-334.02447581,0.000109,2]
[335479396,1724261431889,-153.75,0.00010959,2]
[335479397,1724261431899,-1002.08,0.00010959,2]
[335479398,1724261431908,-155.35,0.00010959,2]
[335479399,1724261431917,-250.0,0.00010959,2]
[335479400,1724261431928,-587.14,0.00010959,2]
[335479401,1724261431938,-794.0,0.00010971,2]
[335479402,1724261431947,-200.0,0.00010973,2]
[335479403,1724261431958,-200.0,0.00010973,2]
[335479404,1724261431967,-789.79090679,0.0001099,2]
[335479405,1724261431977,-789.79090679,0.0001099,2]
[335479406,1724261431988,-789.79090679,0.0001099,2]
[335479407,1724261432002,-165.86544255,0.00010997,2]
[335479408,1724261432012,-241.33539938,0.00010999,2]
[335479409,1724261432022,-622.31784877,0.00010999,2]
[335479410,1724261432033,-201.26135232,0.00010999,2]
[335479411,1724261432043,-420.0,0.00010999,2]
[335479412,1724261432052,-420.0,0.00010999,2]
[335479413,1724261432062,-500.0,0.00010999,2]
[335479414,1724261432073,-205.53862863,0.00010999,2]
[335479415,1724261432082,-56340.81672179,0.00011,2]
[335479416,1724261432094,-11119.80320991,0.00011,2]
[335479417,1724261432106,-1525.1233529,0.00011,2]
[335479419,1724261432119,-301.2900896,0.00011,2]
[335479420,1724261432138,-474804.735677,0.00011,2]
[335479421,1724261432147,-1000.0,0.00011,2]
[335479422,1724261432157,-168182.10308005,0.00011,2]
[335479423,1724261432169,-8866.39917167,0.00011,2]
[335479424,1724261432187,-2109.43741355,0.00011,2]
[335479425,1724261432198,-665.12228065,0.00011,2]